fUST/lending_fUST_20240302
["ID","MTS","AMOUNT","RATE_DAILY","PERIOD"]
[316109347,1709358639903,-303.305508,0.00023632,2]
[316109348,1709358639913,-1315.218577,0.00023633,2]
[316109350,1709358639921,-201.308966,0.00023633,2]
[316109351,1709358639931,-999.83453,0.00023633,2]
[316109352,1709358639940,-1000.0,0.00023637,2]
[316109354,1709358639948,-1000.0,0.00023666,2]
[316109355,1709358639958,-651.99319654,0.00023695,2]
[316109357,1709358639967,-1000.0,0.00023722,2]
[316109358,1709358639976,-1000.0,0.00023723,2]
[316109359,1709358639986,-1000.0,0.00023728,2]
[316109361,1709358639995,-651.99319654,0.00023763,2]
[316109362,1709358640005,-1000.0,0.00023772,2]
[316109363,1709358640014,-300.129626,0.00023791,2]
[316109365,1709358640023,-3378.37891865,0.000238,7]
[316109366,1709358640033,-2996.40495196,0.000238,2]
[316109367,1709358640043,-1000.0,0.00023814,2]
[316109369,1709358640052,-584.25928387,0.00023828,2]
[316109370,1709358640062,-651.99319654,0.00023832,2]
[316109371,1709358640071,-500.0,0.00023853,2]
[316109373,1709358640080,-1210.31,0.00023853,2]
[316109374,1709358640089,-1000.0,0.00023893,2]
[316109376,1709358640098,-500.0,0.00023899,2]
[316109377,1709358640107,-648.11,0.00023899,2]
[316109378,1709358640116,-5006.94,0.00023899,2]
[316109380,1709358640127,-954.22,0.00023899,2]
[316109381,1709358640136,-500.0,0.00023899,2]
[316109382,1709358640146,-3600.057119,0.000239,2]
[316109384,1709358640161,-300.0,0.000239,11]
[316109385,1709358640171,-454.08132642,0.000239,2]
[316109387,1709358640181,-1000.0,0.00023921,2]
[316109388,1709358640191,-240.228699,0.00023924,2]
[316109389,1709358640200,-263.043716,0.00023924,2]
[316109391,1709358640210,-199.966906,0.00023924,2]
[316109392,1709358640219,-303.305508,0.00023924,2]
[316109393,1709358640229,-1006.550972,0.00023965,2]
[316109395,1709358640239,-500.0,0.00023996,2]
[316109396,1709358640248,-500.0,0.00023996,2]
[316109398,1709358640258,-648.11,0.00023996,2]
[316109399,1709358640267,-648.11,0.00023996,2]
[316109400,1709358640276,-954.22,0.00023996,2]
[316109402,1709358640288,-954.22,0.00023996,2]
[316109403,1709358640299,-500.0,0.00023996,2]
[316109404,1709358640309,-500.0,0.00023996,2]
[316109406,1709358640318,-500.0,0.00023997,2]
[316109407,1709358640327,-648.11,0.00023997,2]
[316109408,1709358640337,-5006.94,0.00023997,2]
[316109410,1709358640346,-954.22,0.00023997,2]
[316109411,1709358640355,-500.0,0.00023997,2]
[316109413,1709358640364,-500.0,0.00023997,2]
[316109414,1709358640374,-500.0,0.00023997,2]
[316109415,1709358640385,-1210.31,0.00023997,2]
[316109417,1709358640394,-1210.31,0.00023997,2]
[316109418,1709358640403,-184.36863849,0.00023998,2]
[316109419,1709358640413,-1910.0722427,0.00023998,2]
[316109421,1709358640421,-256.94707593,0.00023998,2]
[316109422,1709358640431,-558.92126396,0.00023998,2]
[316109423,1709358640441,-8382.93769081,0.00023998,2]
[316109425,1709358640450,-400.0,0.00023998,2]
[316109426,1709358640459,-180.00477285,0.00023998,2]
[316109428,1709358640468,-401.83058044,0.00023998,2]
[316109429,1709358640477,-429.83650399,0.00023998,2]
[316109430,1709358640486,-182.21287446,0.00023998,2]
[316109432,1709358640495,-180.09180806,0.00023998,2]
[316109433,1709358640504,-625.0038189,0.00023998,2]
[316109434,1709358640513,-539.83101076,0.00023998,2]
[316109436,1709358640523,-156.15850147,0.00023998,2]
[316109437,1709358640532,-416.04811495,0.00023998,2]
[316109438,1709358640542,-2117.88476154,0.00023998,2]
[316109440,1709358640551,-611.49646159,0.00023998,2]
[316109441,1709358640560,-929.85495771,0.00023998,2]
[316109442,1709358640569,-206.75192354,0.00023998,2]
[316109444,1709358640578,-155.15670828,0.00023998,2]
[316109445,1709358640587,-169.86907154,0.00023998,2]
[316109447,1709358640597,-185.81367766,0.00023998,2]
[316109448,1709358640607,-15109.25875387,0.00023998,2]
[316109449,1709358640616,-1092.83006591,0.00023998,5]
[316109451,1709358640625,-161.99047563,0.00023998,2]
[316109452,1709358640635,-155.0558201,0.00023998,2]
[316109453,1709358640645,-155.40836172,0.00023998,2]
[316109455,1709358640657,-155.13962566,0.00023998,2]
[316109456,1709358640667,-237.94459619,0.00023998,2]
[316109457,1709358640677,-160.45581609,0.00023998,2]
[316109459,1709358640686,-4723.26066805,0.00023998,2]
[316109460,1709358640696,-155.13962566,0.00023998,2]
[316109461,1709358640706,-2747.85918541,0.00023998,2]
[316109463,1709358640716,-500.0,0.00023998,2]
[316109464,1709358640725,-648.11,0.00023998,2]
[316109465,1709358640735,-1204.16708336,0.00023998,2]
[316109467,1709358640744,-5006.94,0.00023998,2]
[316109468,1709358640753,-5006.94,0.00023998,2]
[316109470,1709358640762,-954.22,0.00023998,2]
[316109471,1709358640772,-473.33,0.00023998,2]
[316109472,1709358640781,-500.0,0.00023998,2]
[316109477,1709358640873,-407.570446,0.00023998,2]
[316109478,1709358640883,-407.570446,0.00023998,2]
[316109480,1709358640893,-1210.31,0.00023998,2]
[316109481,1709358640903,-179.72662285,0.00023999,2]
[316109482,1709358640913,-239.26958441,0.00023999,2]
[316109484,1709358640922,-500.0,0.00023999,2]
[316109485,1709358640931,-500.0,0.00023999,2]
[316109486,1709358640940,-500.0,0.00023999,2]
[316109488,1709358640950,-500.0,0.00023999,2]
[316109489,1709358640959,-500.0,0.00023999,2]
[316109490,1709358640968,-500.0,0.00023999,2]
[316109492,1709358640977,-550.99901469,0.00023999,2]
[316109493,1709358640987,-648.11,0.00023999,2]
[316109494,1709358640996,-648.11,0.00023999,2]
[316109496,1709358641005,-648.11,0.00023999,2]
[316109497,1709358641014,-648.11,0.00023999,2]
[316109498,1709358641023,-648.11,0.00023999,2]
[316109499,1709358641033,-648.11,0.00023999,2]
[316109500,1709358641042,-648.11,0.00023999,2]
[316109501,1709358641051,-648.17371277,0.00023999,2]
[316109502,1709358641060,-5006.94,0.00023999,2]
[316109503,1709358641069,-5006.94,0.00023999,2]
[316109504,1709358641079,-5006.94,0.00023999,2]
[316109505,1709358641088,-5006.94,0.00023999,2]
[316109506,1709358641098,-5006.94,0.00023999,2]
[316109507,1709358641108,-5006.94,0.00023999,2]
[316109508,1709358641117,-5006.94,0.00023999,2]
[316109509,1709358641126,-5006.94,0.00023999,2]
[316109510,1709358641136,-5006.94,0.00023999,2]
[316109511,1709358641145,-5006.94,0.00023999,2]
[316109512,1709358641154,-5006.94,0.00023999,2]
[316109513,1709358641163,-5007.17325202,0.00023999,2]
[316109514,1709358641172,-954.22,0.00023999,2]
[316109515,1709358641182,-954.22,0.00023999,2]
[316109516,1709358641191,-954.22,0.00023999,2]
[316109517,1709358641200,-954.22,0.00023999,2]
[316109518,1709358641209,-954.22,0.00023999,2]
[316109520,1709358641218,-954.22,0.00023999,2]
[316109521,1709358641227,-954.22,0.00023999,2]
[316109522,1709358641237,-954.33647099,0.00023999,2]
[316109524,1709358641246,-500.0,0.00023999,2]
[316109525,1709358641255,-318.23,0.00023999,2]
[316109527,1709358641264,-407.570446,0.00023999,2]
[316109528,1709358641274,-407.570446,0.00023999,2]
[316109529,1709358641283,-1210.31,0.00023999,2]
[316109531,1709358641292,-1210.31,0.00023999,2]
[316109532,1709358641306,-1210.31,0.00023999,2]
[316109533,1709358641315,-1210.31,0.00023999,2]
[316109535,1709358641325,-1210.34202345,0.00023999,2]
[316109536,1709358641334,-260.31,0.00023999,2]
[316109537,1709358641343,-260.31,0.00023999,2]
[316109539,1709358641352,-260.31,0.00023999,2]
[316109540,1709358641361,-260.31,0.00023999,2]
[316109541,1709358641370,-519602.2070135,0.00024,5]
[316109544,1709358641420,-2999.9894679,0.00024,5]
[316109681,1709358644045,-500.0,0.00020547,2]
[316109682,1709358644055,-132.59647099,0.00022999,2]
[316109763,1709358646109,-500.0,0.00020547,2]
[316109764,1709358646119,-500.0,0.00021798,2]
[316109765,1709358646128,-500.0,0.00021899,2]
[316109767,1709358646137,-500.0,0.00021899,2]
[316109768,1709358646147,-500.0,0.00021899,2]
[316109769,1709358646156,-367.40352901,0.00022999,2]
[316109771,1709358646165,-480.10414989,0.00022999,2]
[316109772,1709358646175,-500.0,0.00022999,2]
[316109773,1709358646185,-500.0,0.00022999,2]
[316109775,1709358646194,-165.71906196,0.00022999,2]
[316109776,1709358646203,-500.0,0.00022999,2]
[316109777,1709358646213,-500.0,0.00022999,2]
[316109779,1709358646222,-500.0,0.00022999,2]
[316109780,1709358646231,-500.0,0.00022999,2]
[316109781,1709358646240,-500.0,0.00022999,2]
[316109783,1709358646249,-500.0,0.00022999,2]
[316109784,1709358646259,-500.0,0.00022999,2]
[316109785,1709358646269,-500.0,0.00022999,2]
[316109787,1709358646278,-651.99319654,0.000239,2]
[316109788,1709358646292,-1859.98294994,0.00023974,2]
[316109790,1709358646305,-260.31,0.00023999,2]
[316109791,1709358646314,-260.31,0.00023999,2]
[316109792,1709358646322,-260.31,0.00023999,2]
[316109794,1709358646331,-260.31,0.00023999,2]
[316109795,1709358646340,-260.31,0.00023999,2]
[316109796,1709358646349,-260.31,0.00023999,2]
[316109798,1709358646358,-111295.65209332,0.00024,5]
[316111633,1709358861970,157.14284784,0.000176,2]
[316112605,1709359295762,24900.0,0.00018512,2]
[316112867,1709359832367,-1592.56843785,0.00018895,2]
[316112869,1709359832378,-321.4643478,0.00018895,2]
[316112871,1709359832388,-1472.4322427,0.00018896,2]
[316112873,1709359832397,-274.0783514,0.00018897,2]
[316112875,1709359832406,-623.51457939,0.00018898,2]
[316112877,1709359832415,-374.07264385,0.00018898,2]
[316112888,1709359832515,-8011.10191863,0.00018898,2]
[316112890,1709359832525,-589.6651147,0.000189,2]
[316112892,1709359832536,-58024.18389253,0.00018974,2]
[316112894,1709359832546,-54142.25953772,0.00019,2]
[316112896,1709359832557,-176.78049526,0.00020447,2]
[316112898,1709359832568,-500.0,0.00020545,2]
[316112900,1709359832577,-161.59100966,0.00020547,2]
[316112902,1709359832587,-500.0,0.00020547,2]
[316112903,1709359832597,-500.0,0.00020547,2]
[316112904,1709359832607,-500.0,0.00020547,2]
[316112906,1709359832617,-500.0,0.00020547,2]
[316112908,1709359832627,-500.0,0.00020547,2]
[316112910,1709359832637,-500.68698017,0.00020547,2]
[316112912,1709359832646,-500.0,0.00020547,2]
[316112913,1709359832656,-501.14278143,0.00020547,2]
[316112915,1709359832666,-500.0,0.00020547,2]
[316112917,1709359832677,-500.0,0.00020547,2]
[316112919,1709359832687,-256.28630738,0.00020547,2]
[316112921,1709359832698,-333.04255885,0.00020547,2]
[316112923,1709359832710,-500.0,0.00020547,2]
[316112925,1709359832719,-500.0,0.00020547,2]
[316112927,1709359832731,-500.0,0.00020547,2]
[316112929,1709359832741,-500.0,0.00020547,2]
[316112931,1709359832751,-500.0,0.00020547,2]
[316112933,1709359832762,-500.0,0.00020547,2]
[316112936,1709359832774,-500.0,0.00020547,2]
[316112937,1709359832787,-500.0,0.00020547,2]
[316112939,1709359832798,-500.0,0.00020547,2]
[316112942,1709359832809,-500.0,0.00020547,2]
[316112943,1709359832820,-500.0,0.00020547,2]
[316112946,1709359832830,-500.0,0.00020547,2]
[316112948,1709359832841,-500.0,0.00020547,2]
[316112949,1709359832851,-500.0,0.00020547,2]
[316112951,1709359832861,-500.0,0.00020547,2]
[316112953,1709359832870,-500.0,0.00020547,2]
[316112956,1709359832880,-500.0,0.00020547,2]
[316112957,1709359832889,-500.0,0.00020547,2]
[316112959,1709359832899,-500.0,0.00020547,2]
[316112961,1709359832909,-500.0,0.00020547,2]
[316112963,1709359832918,-1251.24,0.00020547,2]
[316112965,1709359832927,-1251.24,0.00020547,2]
[316112966,1709359832937,-500.0,0.00020547,2]
[316112968,1709359832946,-285.39430734,0.00020547,2]
[316112969,1709359832955,-500.0,0.00020547,2]
[316112971,1709359832964,-500.0,0.00020547,2]
[316112973,1709359832973,-500.0,0.00020547,2]
[316112974,1709359832983,-500.0,0.00020547,2]
[316112975,1709359832993,-500.0,0.00020547,2]
[316112976,1709359833002,-500.0,0.00020547,2]
[316112977,1709359833011,-640.04,0.00020547,2]
[316112978,1709359833020,-4509.46,0.00020547,2]
[316112979,1709359833030,-4509.46,0.00020547,2]
[316112980,1709359833039,-500.0,0.00020547,2]
[316112981,1709359833050,-500.0,0.00020547,2]
[316112982,1709359833059,-500.0,0.00020547,2]
[316112983,1709359833068,-500.0,0.00020547,2]
[316112984,1709359833079,-569.28,0.00020547,2]
[316112985,1709359833089,-569.28,0.00020547,2]
[316112986,1709359833099,-500.0,0.00020547,2]
[316112987,1709359833109,-500.0,0.00020547,2]
[316112988,1709359833118,-500.0,0.00020547,2]
[316112989,1709359833128,-500.0,0.00020547,2]
[316112990,1709359833137,-501.50447989,0.00020547,2]
[316112991,1709359833146,-500.0,0.00020547,2]
[316112992,1709359833155,-500.0,0.00020547,2]
[316112993,1709359833165,-500.0,0.00020547,2]
[316112994,1709359833175,-500.0,0.00020547,2]
[316112995,1709359833185,-504.31507577,0.00020547,2]
[316112996,1709359833194,-500.0,0.00020547,2]
[316112997,1709359833203,-500.0,0.00020547,2]
[316112998,1709359833214,-500.0,0.00020547,2]
[316112999,1709359833223,-500.0,0.00020547,2]
[316113000,1709359833231,-500.0,0.00020547,2]
[316113001,1709359833240,-500.0,0.00020547,2]
[316113002,1709359833249,-500.0,0.00020547,2]
[316113003,1709359833258,-500.0,0.00020547,2]
[316113004,1709359833268,-500.0,0.00020547,2]
[316113005,1709359833277,-500.0,0.00020547,2]
[316113006,1709359833288,-501.84595174,0.00020547,2]
[316113007,1709359833298,-502.44684779,0.00020547,2]
[316113008,1709359833309,-532.9,0.00020547,2]
[316113009,1709359833319,-532.9,0.00020547,2]
[316113010,1709359833329,-500.0,0.00020547,2]
[316113011,1709359833340,-500.0,0.00020547,2]
[316113012,1709359833350,-312.95611485,0.00020547,2]
[316113013,1709359833361,-500.0,0.00020547,2]
[316113014,1709359833372,-500.0,0.00020547,2]
[316113015,1709359833382,-500.0,0.00020547,2]
[316113016,1709359833392,-500.0,0.00020547,2]
[316113017,1709359833402,-500.0,0.00020547,2]
[316113018,1709359833411,-500.0,0.00020547,2]
[316113019,1709359833421,-500.0,0.00020547,2]
[316113020,1709359833430,-500.0,0.00020547,2]
[316113021,1709359833439,-1488.4,0.00020547,2]
[316113022,1709359833448,-1488.4,0.00020547,2]
[316113023,1709359833458,-500.0,0.00020547,2]
[316113024,1709359833467,-501.62593083,0.00020547,2]
[316113025,1709359833476,-500.0,0.00020547,2]
[316113026,1709359833486,-500.0,0.00020547,2]
[316113027,1709359833496,-500.0,0.00020547,2]
[316113028,1709359833506,-500.0,0.00020547,2]
[316113029,1709359833515,-500.0,0.00020547,2]
[316113030,1709359833524,-500.0,0.00020547,2]
[316113031,1709359833533,-500.0,0.00020547,2]
[316113032,1709359833542,-448.70416613,0.00020547,2]
[316113033,1709359833551,-500.0,0.00020547,2]
[316113034,1709359833562,-500.0,0.00020547,2]
[316113035,1709359833572,-500.0,0.00020547,2]
[316113036,1709359833583,-358.72472899,0.00020547,2]
[316113037,1709359833593,-500.0,0.00020547,2]
[316113038,1709359833605,-500.0,0.00020547,2]
[316113039,1709359833614,-500.0,0.00020547,2]
[316113040,1709359833623,-500.0,0.00020547,2]
[316113041,1709359833633,-500.0,0.00020547,2]
[316113042,1709359833643,-500.0,0.00020547,2]
[316113043,1709359833652,-500.0,0.00020547,2]
[316113044,1709359833662,-500.0,0.00020547,2]
[316113045,1709359833671,-500.0,0.00020547,2]
[316113046,1709359833680,-500.0,0.00020547,2]
[316113048,1709359833694,-500.0,0.00020995,2]
[316113049,1709359833704,-500.0,0.00020995,2]
[316113050,1709359833715,-500.0,0.00020996,2]
[316113051,1709359833725,-500.0,0.00020996,2]
[316113052,1709359833735,-500.0,0.00020996,2]
[316113053,1709359833745,-162.72165312,0.00020996,2]
[316113054,1709359833754,-500.0,0.00020996,2]
[316113055,1709359833765,-1251.24,0.00020996,2]
[316113056,1709359833777,-4509.46,0.00020996,2]
[316113057,1709359833788,-500.0,0.00020996,2]
[316113058,1709359833798,-569.28,0.00020996,2]
[316113059,1709359833809,-500.0,0.00020996,2]
[316113060,1709359833820,-500.0,0.00020996,2]
[316113061,1709359833830,-500.0,0.00020996,2]
[316113062,1709359833840,-233.44143375,0.00020996,2]
[316113063,1709359833850,-532.9,0.00020996,2]
[316113064,1709359833861,-474.55024548,0.00020996,2]
[316113065,1709359833871,-1488.4,0.00020996,2]
[316113066,1709359833881,-500.0,0.00020996,2]
[316113067,1709359833890,-500.0,0.00020996,2]
[316113068,1709359833900,-500.0,0.00020996,2]
[316113069,1709359833910,-500.0,0.00020996,2]
[316113070,1709359833919,-8443.31756199,0.00020997,2]
[316113071,1709359833930,-500.0,0.00020997,2]
[316113072,1709359833939,-14589.41124307,0.00020998,2]
[316113073,1709359833949,-500.0,0.00021796,2]
[316113074,1709359833958,-500.0,0.00021796,2]
[316113075,1709359833969,-500.0,0.00021796,2]
[316113076,1709359833978,-500.0,0.00021796,2]
[316113077,1709359833988,-500.0,0.00021796,2]
[316113078,1709359833997,-500.0,0.00021796,2]
[316113080,1709359834007,-173.55,0.00021798,2]
[316113081,1709359834017,-173.55,0.00021798,2]
[316113082,1709359834026,-173.55,0.00021798,2]
[316113083,1709359834036,-173.55,0.00021798,2]
[316113084,1709359834046,-173.55,0.00021798,2]
[316113085,1709359834056,-173.55,0.00021798,2]
[316113086,1709359834065,-500.0,0.00021798,2]
[316113087,1709359834075,-199.93897482,0.00021798,2]
[316113088,1709359834085,-500.0,0.00021798,2]
[316113089,1709359834095,-500.0,0.00021798,2]
[316113090,1709359834105,-500.0,0.00021798,2]
[316113091,1709359834115,-500.0,0.00021798,2]
[316113092,1709359834125,-500.0,0.00021798,2]
[316113093,1709359834134,-500.0,0.00021798,2]
[316113094,1709359834143,-100259.33037788,0.00021799,2]
[316113095,1709359834152,-500.0,0.00021897,2]
[316113096,1709359834161,-500.0,0.00021898,2]
[316113097,1709359834171,-500.0,0.00021898,2]
[316113098,1709359834180,-1251.24,0.00021898,2]
[316113099,1709359834190,-4509.46,0.00021898,2]
[316113100,1709359834199,-500.0,0.00021898,2]
[316113101,1709359834208,-569.28,0.00021898,2]
[316113102,1709359834218,-500.0,0.00021898,2]
[316113103,1709359834228,-500.0,0.00021898,2]
[316113104,1709359834238,-500.0,0.00021898,2]
[316113105,1709359834248,-532.9,0.00021898,2]
[316113106,1709359834258,-1488.4,0.00021898,2]
[316113107,1709359834267,-500.0,0.00021898,2]
[316113108,1709359834277,-500.0,0.00021898,2]
[316113109,1709359834287,-500.0,0.00021898,2]
[316113110,1709359834296,-500.0,0.00021898,2]
[316113111,1709359834306,-500.0,0.00021898,2]
[316113112,1709359834317,-500.0,0.00021899,2]
[316113113,1709359834326,-500.0,0.00021899,2]
[316113114,1709359834335,-209.3074165,0.00021901,2]
[316113115,1709359834346,-223.34287916,0.00021908,2]
[316113116,1709359834355,-3447.92144958,0.00021911,2]
[316113117,1709359834365,-353.322031,0.00021918,2]
[316113119,1709359834377,-2944.89702641,0.00021928,2]
[316113120,1709359834386,-9137.9567635,0.00021967,3]
[316113121,1709359834398,-267.53566025,0.00021988,3]
[316113122,1709359834409,-500.0,0.00021991,2]
[316113123,1709359834420,-23869.43968333,0.00021992,3]
[316113124,1709359834430,-5433.41997391,0.00021996,3]
[316113125,1709359834441,-327.2251864,0.00022,2]
[316113126,1709359834452,-157.1486779,0.00022589,2]
[316113127,1709359834462,-8235.44669183,0.0002259,2]
[316113128,1709359834473,-1000.0,0.0002264,2]
[316113129,1709359834483,-500.0,0.00022761,2]
[316113130,1709359834493,-500.0,0.00022761,2]
[316113131,1709359834503,-500.0,0.00022761,2]
[316113132,1709359834513,-500.0,0.00022761,2]
[316113133,1709359834524,-500.0,0.00022761,2]
[316113134,1709359834534,-500.0,0.00022761,2]
[316113135,1709359834544,-1000.0,0.00022777,2]
[316113136,1709359834554,-584.25928387,0.0002286,2]
[316113137,1709359834565,-500.0,0.00022889,2]
[316113138,1709359834576,-500.0,0.0002289,2]
[316113139,1709359834586,-1251.24,0.0002289,2]
[316113140,1709359834596,-4509.46,0.0002289,2]
[316113141,1709359834607,-500.0,0.0002289,2]
[316113142,1709359834618,-569.28,0.0002289,2]
[316113143,1709359834628,-500.0,0.0002289,2]
[316113144,1709359834638,-500.0,0.0002289,2]
[316113145,1709359834647,-532.9,0.0002289,2]
[316113146,1709359834658,-1488.4,0.0002289,2]
[316113147,1709359834668,-500.0,0.0002289,2]
[316113148,1709359834679,-500.0,0.0002289,2]
[316113149,1709359834689,-500.0,0.0002289,2]
[316113150,1709359834702,-500.0,0.0002289,2]
[316113151,1709359834712,-500.0,0.00022922,2]
[316113152,1709359834723,-1000.0,0.00022939,2]
[316113153,1709359834732,-1000.0,0.00023097,2]
[316113154,1709359834742,-1000.0,0.0002311,2]
[316113155,1709359834752,-1000.0,0.00023172,2]
[316113156,1709359834761,-1000.0,0.000232,2]
[316113157,1709359834770,-580.0,0.000232,2]
[316113158,1709359834780,-1000.0,0.0002328,2]
[316113159,1709359834789,-1000.0,0.00023285,2]
[316113161,1709359834798,-1000.0,0.00023295,2]
[316113162,1709359834807,-201.308966,0.00023341,2]
[316113163,1709359834816,-704.581381,0.00023341,2]
[316113164,1709359834826,-500.0,0.00023348,2]
[316113165,1709359834835,-500.0,0.00023349,2]
[316113166,1709359834844,-4509.46,0.00023349,2]
[316113167,1709359834853,-406.93546264,0.00023349,2]
[316113168,1709359834862,-500.0,0.00023349,2]
[316113169,1709359834873,-532.9,0.00023349,2]
[316113170,1709359834882,-500.0,0.00023383,2]
[316113171,1709359834892,-353.322031,0.00023452,2]
[316113172,1709359834902,-1006.550972,0.00023482,2]
[316113173,1709359834911,-1000.0,0.00023494,5]
[316113174,1709359834922,-1251.24,0.00023531,2]
[316113175,1709359834932,-569.28,0.00023531,2]
[316113176,1709359834941,-500.0,0.00023531,2]
[316113177,1709359834950,-500.0,0.00023531,2]
[316113178,1709359834959,-500.0,0.00023531,2]
[316113179,1709359834969,-500.0,0.00023531,2]
[316113180,1709359834978,-500.0,0.00023531,2]
[316113181,1709359834987,-1488.4,0.00023531,2]
[316113182,1709359834996,-500.0,0.00023531,2]
[316113183,1709359835006,-500.0,0.00023531,2]
[316113184,1709359835015,-500.0,0.00023531,2]
[316113185,1709359835025,-500.0,0.00023531,2]
[316113186,1709359835035,-1000.0,0.0002358,5]
[316113187,1709359835045,-5000.0,0.00023615,5]
[316113188,1709359835054,-201.308966,0.00023632,2]
[316113189,1709359835065,-704.581381,0.00023632,2]
[316113190,1709359835075,-2551.05,0.00023696,3]
[316113191,1709359835084,-3378.37891865,0.000238,7]
[316113192,1709359835094,-620.0207759,0.00023849,2]
[316113193,1709359835104,-300.129626,0.00023877,2]
[316113194,1709359835113,-471.68890516,0.00023899,2]
[316113195,1709359835124,-471.68890515,0.00023899,2]
[316113196,1709359835134,-471.68890515,0.00023899,2]
[316113197,1709359835144,-471.68890515,0.00023899,2]
[316113198,1709359835154,-471.68890515,0.00023899,2]
[316113199,1709359835253,-471.68890515,0.000239,2]
[316113200,1709359835263,-471.68890515,0.000239,2]
[316113201,1709359835272,-471.68890515,0.000239,2]
[316113202,1709359835281,-471.68890515,0.000239,2]
[316113203,1709359835291,-471.68890515,0.000239,2]
[316113204,1709359835300,-589.6651147,0.000239,2]
[316113205,1709359835309,-201.308966,0.00023924,2]
[316113206,1709359835319,-704.581381,0.00023924,2]
[316113207,1709359835328,-500.0,0.00023973,2]
[316113208,1709359835337,-500.0,0.00023996,2]
[316113209,1709359835346,-4509.46,0.00023996,2]
[316113210,1709359835356,-532.9,0.00023996,2]
[316113211,1709359835366,-500.0,0.00023996,2]
[316113212,1709359835375,-1251.24,0.00023997,2]
[316113213,1709359835385,-1251.24,0.00023997,2]
[316113214,1709359835395,-569.28,0.00023997,2]
[316113215,1709359835404,-569.28,0.00023997,2]
[316113216,1709359835413,-500.0,0.00023997,2]
[316113217,1709359835424,-500.0,0.00023997,2]
[316113218,1709359835433,-500.0,0.00023997,2]
[316113219,1709359835442,-500.0,0.00023997,2]
[316113220,1709359835451,-500.0,0.00023997,2]
[316113221,1709359835460,-500.0,0.00023997,2]
[316113222,1709359835470,-500.0,0.00023997,2]
[316113223,1709359835481,-500.0,0.00023997,2]
[316113224,1709359835491,-1488.4,0.00023997,2]
[316113225,1709359835500,-1488.4,0.00023997,2]
[316113226,1709359835510,-500.0,0.00023997,2]
[316113227,1709359835519,-500.0,0.00023997,2]
[316113228,1709359835528,-500.0,0.00023997,2]
[316113229,1709359835537,-500.0,0.00023997,2]
[316113230,1709359835546,-500.0,0.00023997,2]
[316113231,1709359835555,-359.52,0.00023997,2]
[316113232,1709359835565,-500.0,0.00023997,2]
[316113233,1709359835574,-500.0,0.00023997,2]
[316113234,1709359835584,-500.0,0.00023997,2]
[316113235,1709359835593,-500.0,0.00023997,2]
[316113236,1709359835602,-500.0,0.00023997,2]
[316113237,1709359835611,-528.69171357,0.00023998,3]
[316113238,1709359835620,-2584.55261029,0.00023998,2]
[316113239,1709359835630,-214.12256328,0.00023998,2]
[316113240,1709359835639,-179.72662285,0.00023998,2]
[316113241,1709359835649,-239.26958441,0.00023998,2]
[316113242,1709359835658,-1204.16708336,0.00023998,2]
[316113243,1709359835667,-160.45581609,0.00023998,2]
[316113244,1709359835677,-155.13962566,0.00023998,2]
[316113245,1709359835686,-155.40836172,0.00023998,2]
[316113246,1709359835696,-155.13962566,0.00023998,2]